Cogmind - Beta 10.2 @@@ ROGUE MODE // 2020.12.26 @ 21:31:22 Player: CrossedViper Result: Destroyed by P-80 Master with Gamma Rifle Performance ------------- Evolutions (9) 4500 Regions Visited (26) 5200 Robots Destroyed (456) 2280 Value Destroyed (20444) 20444 Prototype IDs (40) 800 Alien Tech Used (1) 200 Bonus (7796) 7796 TOTAL SCORE: 41220 Bonus ------- High Alert Combat Kills 4925 Follower Combat Kills 1135 Entered Garrisons 600 Used RIF Installer 500 Met Zhirov 300 Met R17 at Cetus 500 Friendly Fire -164 Cogmind --------- Core Integrity 0/1600 Matter 270/300 Energy 89/100 System Corruption 13% Temperature Cool (0) Movement Core (50) Location -1/Access Parts ------- > --- POWER (3) -------- (None) > --- PROPULSION (4) --- Improved Antigrav System Improved Antigrav System Diametric Drive Diametric Drive > --- UTILITY (15) ----- Transport Network Coupler > --- WEAPON (3) ------- (None) > --- INVENTORY (4) ---- Quantum Reactor Large Storage Unit Precision Phase Gun Peak State ------------ > --- POWER ------------ Micro Fission Core Light Particle Reactor Light Quantum Reactor > --- PROPULSION ------- Armored Heavy Treads Centrium Heavy Treads > --- UTILITY ---------- Advanced Heat Sink Large Storage Unit Large Storage Unit Advanced Energy Well Improved Matter Compressor Advanced Salvage Targeting Computer Advanced Target Analyzer Quantum Capacitor Improved Weapon Shielding Improved Heavy Armor Plating Advanced Dynamic Insulation System > --- WEAPON ----------- Enhanced Nova Cannon Railgun Linear Accelerator > --- INVENTORY -------- Micro Fission Core Medium Treads Advanced Salvage Targeting Computer Dimensional Node Initializer Transdimensional Reconstructor Gamma Rifle Gamma Rifle Gamma Rifle Gamma Rifle Gamma Rifle Heavy Wave Gun Nova Cannon KE Penetrator KE Penetrator [Rating: 162] Favorites ----------- Power Quantum Reactor Engine Ion Engine Power Core Enhanced Nuclear Core Reactor Quantum Reactor Propulsion Light Treads Treads Light Treads Leg Improved Titanium Leg Wheel Compact Wheel Hover Unit Combat Antigrav System Flight Unit Field Propulsion Array Utility Large Storage Unit Device Improved Heat Sink Storage Large Storage Unit Processor Advanced Terrain Scan Processor Protection Centrium Medium Armor Plating Weapon Advanced Beam Cannon Energy Gun Tesla Rifle Energy Cannon Advanced Beam Cannon Ballistic Gun Coil Gun Ballistic Cannon Linear Accelerator Launcher Proton Missile Launcher Special Weapon Plasma Cutter Impact Weapon Shock Maul Slashing Weapon Ripper Build | -11 -10 -10 -9 -9 -9 -8 -8 -7 -7 -7 -7 -6 -5 -5 -5 -4 -4 -4 -4 -3 -3 -2 -2 -2 -2 -1 ------- Run | Scr Mat Min Mat Min Exi Min Mat Fac Gar Sto Gar Fac Fac Ext Cet Fac Upp Upp Zhi Pro Res Res Gar Res Qua Acc Slots Evolved 18 | . . . 2 . . . 2 2 . . . 2 2 . . 2 . . . . 2 2 . . . 2 Power 2 | . . . . . . . . . . . . 1 . . . . . . . . . 1 . . . . Propulsion 2 | . . . 1 . . . . . . . . . . . . . . . . . 1 . . . . . Utility 13 | . . . 1 . . . 2 2 . . . 1 1 . . 2 . . . . 1 1 . . . 2 Weapon 1 | . . . . . . . . . . . . . 1 . . . . . . . . . . . . . Parts Attached 584 | . 9 2 39 4 . 3 17 13 34 46 32 19 40 48 18 13 11 16 14 59 20 45 24 14 3 41 Power 70 | . 2 . 7 1 . . 2 1 4 6 1 3 3 . 2 . 1 1 2 9 2 10 6 3 . 4 Engine 19 | . 2 . 7 1 . . 2 1 . 2 . 2 . . . . . 1 . . . . . 1 . . Core 16 | . . . . . . . . . 4 4 1 1 1 . . . . . . 1 . 2 2 . . . Reactor 35 | . . . . . . . . . . . . . 2 . 2 . 1 . 2 8 2 8 4 2 . 4 Propulsion 128 | . 2 1 13 . . 2 5 3 3 10 5 4 4 16 2 1 1 4 3 10 6 9 6 2 . 16 Treads 85 | . 2 1 13 . . 2 5 . 3 10 5 4 3 9 2 1 1 2 . 3 6 5 . . . 8 Leg 19 | . . . . . . . . 3 . . . . . 4 . . . 2 3 7 . . . . . . Wheel 4 | . . . . . . . . . . . . . 1 3 . . . . . . . . . . . . Hover 17 | . . . . . . . . . . . . . . . . . . . . . . 4 6 2 . 5 Flight 3 | . . . . . . . . . . . . . . . . . . . . . . . . . . 3 Utility 172 | . 2 . 2 . . . 4 6 17 11 19 7 20 14 5 6 2 4 4 16 6 9 4 7 1 6 Device 84 | . . . 2 . . . 2 3 5 5 17 4 10 6 1 1 . 2 . 10 4 2 3 2 1 4 Storage 16 | . 2 . . . . . . . . . . . 1 1 . 3 . . 2 2 . 1 . 4 . . Processor 15 | . . . . . . . 1 1 . 1 . . 3 1 . 1 . . . 2 1 1 . 1 . 2 Hackware . | . . . . . . . . . . . . . . . . . . . . . . . . . . . Protection 57 | . . . . . . . 1 2 12 5 2 3 6 6 4 1 2 2 2 2 1 5 1 . . . Artifact . | . . . . . . . . . . . . . . . . . . . . . . . . . . . Weapon 214 | . 3 1 17 3 . 1 6 3 10 19 7 5 13 18 9 6 7 7 5 24 6 17 8 2 2 15 Energy Gun 76 | . 3 1 8 . . . 4 3 1 5 2 . 2 6 2 4 3 . 1 9 5 5 5 1 1 5 Energy Cannon 31 | . . . 4 2 . . . . 7 4 2 1 2 . 2 . . . . 1 . 4 1 . . 1 Ballistic Gun 59 | . . . 3 . . 1 1 . . 5 . 3 4 7 3 1 2 4 4 9 1 7 1 . . 3 Ballistic Cannon 1 | . . . . . . . . . . . . . . . . . . . . . . 1 . . . . Launcher 35 | . . . 2 1 . . 1 . 2 4 3 1 5 3 2 1 2 3 . 3 . . . 1 . 1 Special Weapon 5 | . . . . . . . . . . . . . . 2 . . . . . 1 . . . . 1 1 Impact Weapon 5 | . . . . . . . . . . 1 . . . . . . . . . . . . . . . 4 Slashing Weapon 2 | . . . . . . . . . . . . . . . . . . . . 1 . . 1 . . . Piercing Weapon . | . . . . . . . . . . . . . . . . . . . . . . . . . . . Special Melee Weapon . | . . . . . . . . . . . . . . . . . . . . . . . . . . . Unidentified Prototypes 32 | . . . 4 . . . 2 . . 4 . . 3 . 4 1 . . 6 1 1 . . 2 . 4 Parts Lost 184 | . . 3 1 . . 1 1 . 12 11 1 3 8 4 1 3 5 3 . 33 4 31 23 3 . 33 Power 25 | . . . 1 . . . . . 1 1 . . . . . . . 1 . 4 . 6 4 1 . 6 Propulsion 27 | . . 1 . . . . . . 1 . . 1 2 . . 1 1 . . 1 . 4 5 . . 10 Utility 68 | . . . . . . . 1 . 5 5 . 2 5 . . 1 1 1 . 14 2 12 8 . . 11 Weapon 64 | . . 2 . . . 1 . . 5 5 1 . 1 4 1 1 3 1 . 14 2 9 6 2 . 6 Highest Loss Streak 12 | . . 2 1 . . 1 1 . 4 4 1 3 3 1 1 3 4 1 . 10 2 12 12 2 . 11 Average Slot Usage (%) 90 | . 88 98 99 100 100 99 96 97 97 92 93 98 95 98 93 89 89 92 89 79 89 82 56 66 80 52 Engine 4 | . 14 14 10 11 11 11 9 7 3 1 . 1 9 . . . . 2 1 . . . . . . . Core 1 | . . . . . . . . . 3 5 7 10 . . . . . . . 1 4 4 2 6 4 1 Reactor 3 | . . . . . . . . . . . . . 1 11 10 10 10 7 8 7 4 6 3 2 8 3 Treads 16 | . 24 27 33 33 33 33 27 1 8 23 23 20 15 12 12 9 6 5 1 3 9 11 . . . 2 Leg 2 | . 3 . . . . . . 21 13 . . . . 2 . . . 4 11 8 . . . . . . Device 9 | . . . 11 11 11 11 14 14 6 6 8 13 14 10 5 11 5 12 15 8 22 12 3 2 10 7 Storage 16 | . 17 28 22 22 22 22 18 15 15 15 15 13 10 9 11 13 15 15 15 18 19 17 11 17 19 8 Processor 11 | . . . . . . . 7 12 15 16 15 11 15 23 22 18 21 17 15 13 13 8 8 11 13 15 Protection 5 | . . . . . . . 1 7 14 10 6 12 7 6 11 7 14 10 9 2 . 3 2 . . . Energy Gun 5 | . 23 26 12 . . . 8 14 6 2 6 . . 5 3 4 7 . . 7 11 5 4 2 3 2 Energy Cannon 4 | . . . 3 22 22 12 1 . 6 4 7 9 . . 1 . . . . . . . 1 . . . Ballistic Gun 5 | . 4 . 5 . . 9 7 . . 4 . 3 13 9 7 10 7 12 7 4 2 4 . . . 1 Naked Turns . | . . . . . . . . . . . . . . . . . . . . . . . . . . . Heaviest Build 139 | 13 43 43 48 46 46 46 54 62 74 72 72 76 83 90 110 121 127 129 127 130 111 139 83 100 109 106 Greatest Support 160 | 20 40 40 60 60 60 60 60 60 68 70 60 60 60 83 110 110 103 80 90 108 150 160 120 120 110 110 Greatest Overweight (x) 4 | . 1 1 . . . . . 2 1 1 1 1 4 4 1 1 1 1 4 1 . 3 . . . 1 Average Overweight (x) . | . . . . . . . . . . . . . 1 1 . . 1 1 1 . . . . . . . Largest Inventory Capacity 22 | . 16 16 16 16 16 16 16 16 16 16 16 16 16 16 16 22 22 22 22 22 16 20 14 22 22 16 Average Capacity 16 | . 8 16 16 16 16 16 16 16 16 16 16 16 15 14 16 19 22 22 22 19 16 16 8 16 19 11 Most Carried 22 | . 16 16 16 16 16 16 16 16 16 16 16 16 16 16 16 22 20 22 22 22 16 17 13 4 4 16 Average Carried 14 | . 7 15 15 15 15 15 15 15 13 12 15 15 14 13 14 18 15 19 20 18 15 14 7 3 3 8 Final Capacity 22 | 6 16 16 16 16 16 16 16 16 16 16 16 16 10 16 16 22 22 22 22 16 16 14 4 22 16 4 Final Carried 22 | 6 16 16 16 16 16 16 16 16 10 16 16 14 9 16 16 20 13 18 22 16 16 14 4 4 3 3 Class Distribution -------------------- 44% | Scavenger-Mutant 23% | Mutant 11% | Scavenger-Tank 10% | Scavenger-Gunner 7% | Scavenger-Skirmisher Dominant Class ---------------- Mutant | -10/Materials Mutant | -10/Mines Mutant | -9/Materials Scavenger-Mutant | -9/Mines Scavenger-Mutant | -9/Exiles Scavenger-Mutant | -8/Mines Mutant | -8/Materials Mutant | -7/Factory Mutant | -7/Garrison Scavenger-Mutant | -7/Storage Mutant | -7/Garrison Scavenger-Mutant | -6/Factory Scavenger-Mutant | -5/Factory Scavenger-Skirmisher | -5/Extension Scavenger-Gunner | -5/Cetus Scavenger-Skirmisher | -4/Factory Scavenger-Tank | -4/Upper Caves Scavenger-Tank | -4/Upper Caves Scavenger-Mutant | -4/Zhirov Scavenger-Gunner | -3/Proximity Caves Scavenger-Gunner | -3/Research Scavenger-Tank | -2/Research Scavenger-Mutant | -2/Garrison Scavenger-Mutant | -2/Research Generator-Mutant | -2/Quarantine Scavenger-Mutant | -1/Access Resources | -11 -10 -10 -9 -9 -9 -8 -8 -7 -7 -7 -7 -6 -5 -5 -5 -4 -4 -4 -4 -3 -3 -2 -2 -2 -2 -1 ----------- Run | Scr Mat Min Mat Min Exi Min Mat Fac Gar Sto Gar Fac Fac Ext Cet Fac Upp Upp Zhi Pro Res Res Gar Res Qua Acc Matter Collected 11297 | 200 162 19 535 65 . 63 382 30 480 779 343 343 1059 1205 345 515 168 898 491 977 285 504 700 103 . 646 Remotely 474 | . . . . . . . 301 . . 173 . . . . . . . . . . . . . . . . Salvage Created 24406 | . 578 116 1516 257 . 395 1270 97 956 2172 883 847 1795 2264 732 931 558 994 407 1833 1157 2486 873 192 . 1097 Parts 1165 | . 30 5 103 27 . 14 65 2 50 100 38 51 80 109 26 41 43 33 7 65 74 136 25 9 . 32 Haulers Intercepted 26 | . 2 . 6 . . . 3 . . 5 . . 1 1 . 1 . . . . 1 2 . 1 . 3 Recyclers Shooed 6 | . . . 1 . . . . . . 1 . . . . . 1 . . . . . 3 . . . . Parts Field Recycled . | . . . . . . . . . . . . . . . . . . . . . . . . . . . Retrieved Matter . | . . . . . . . . . . . . . . . . . . . . . . . . . . . Parts Self-Destructed 93 | . . . . . . . . . . . . . . . . . 30 22 5 36 . . . . . . Prevented 14 | . . . . . . . . . . . . . . . . . . 6 . 8 . . . . . . Kills | -11 -10 -10 -9 -9 -9 -8 -8 -7 -7 -7 -7 -6 -5 -5 -5 -4 -4 -4 -4 -3 -3 -2 -2 -2 -2 -1 ------- Run | Scr Mat Min Mat Min Exi Min Mat Fac Gar Sto Gar Fac Fac Ext Cet Fac Upp Upp Zhi Pro Res Res Gar Res Qua Acc Combat Hostiles Destroyed 355 | . 12 2 22 10 . 9 18 . 25 35 20 12 29 25 8 11 15 17 . 27 13 20 10 5 . 10 Melee 7 | . . . . . . . . . . 2 . . . 1 . . . . . 1 . . 3 . . . Guns 183 | . 10 2 17 . . 2 16 . 7 13 6 6 13 17 3 8 6 9 . 12 13 16 1 1 . 5 Cannons 53 | . . . 1 6 . 7 2 . 7 10 6 3 1 . . . . . . 5 . 2 1 . . 2 AOE 84 | . 1 . 4 4 . . . . 11 9 6 . 12 7 . 3 9 6 . 7 . . . 4 . 1 Classes Destroyed 17 | . 4 1 5 . . . 2 . . 1 . 1 1 1 1 . . . . . . . . . . . Worker 23 | . . . 1 . . 3 3 . . 1 . 3 2 6 . . . . . . . 2 . 2 . . Builder 22 | . . . 2 1 . . 5 . . 1 . 1 4 2 . 2 . . . . . 4 . . . . Tunneler 5 | . . 1 . 1 . . 1 . . . . . . . . . . . . . . 2 . . . . Hauler 26 | . 2 . 6 . . . 3 . . 5 . . 1 1 . 1 . . . . 1 2 . 1 . 3 Recycler 16 | . . . 4 1 . . . 1 . 2 . . 1 4 . 1 . . . . . 2 . . . . Carrier 1 | . . . . . . . . . . . . . . . 1 . . . . . . . . . . . Watcher 8 | . 2 . 1 . . . 1 . . . . . 1 . . . . . . . . 2 . 1 . . Swarmer 54 | . 3 . 7 8 . 3 . . 5 . 7 . . . . 4 10 2 . 1 . . . 4 . . Saboteur 2 | . . . . . . . . . . . . . 1 1 . . . . . . . . . . . . Grunt 155 | . 9 2 8 2 . 5 11 . 13 22 7 6 18 13 1 2 . 10 . 12 2 2 6 . . 4 Brawler 13 | . . . 1 . . 1 1 . 1 . . 1 2 . 2 . . 1 . 3 . . . . . . Duelist 11 | . . . . . . . 1 . 2 1 . 1 1 . . . . 1 . 3 . . 1 . . . Protector 3 | . . . . . . . . . . . . 1 . 1 . . . . . 1 . . . . . . Sentry 47 | . . . 6 . . . 4 . 4 10 5 1 1 5 . 2 1 1 . 2 2 3 . . . . Hunter 27 | . . . . . . . 1 . . . 1 . . 2 . 2 2 2 . 4 2 5 . . . 6 Programmer 35 | . . . . . . . . . . 2 . 2 6 1 . 1 2 . . 1 7 9 3 1 . . Behemoth 3 | . . . . . . . . . . . . . . 2 . . . . . . . 1 . . . . Cetus Guard 5 | . . . . . . . . . . . . . . . 5 . . . . . . . . . . . Best Kill Streak 13 | . 5 2 5 4 . 4 13 1 11 6 4 4 11 5 4 6 6 8 . 7 4 6 3 8 . 3 Combat Bots Only 11 | . 5 2 5 4 . 3 3 . 11 5 4 3 11 4 3 4 6 8 . 7 4 4 3 5 . 4 Max Kills in Single Turn 7 | . 2 1 3 3 . 1 2 1 3 3 3 1 7 3 2 3 5 3 . 3 1 2 1 2 . 1 Gunslinging 1 | . 1 . . . . . . . . . . . 1 . . 1 . . . . . 1 . . . . Exploded 7 | . 1 . 3 3 . . . . 3 3 3 . 7 1 . 3 5 3 . 3 . . . 2 . 1 Melee 1 | . . . . . . . . . . 1 . . . 1 . . . . . 1 . . 1 . . . Uniques/NPCs Destroyed . | . . . . . . . . . . . . . . . . . . . . . . . . . . . Combat | -11 -10 -10 -9 -9 -9 -8 -8 -7 -7 -7 -7 -6 -5 -5 -5 -4 -4 -4 -4 -3 -3 -2 -2 -2 -2 -1 -------- Run | Scr Mat Min Mat Min Exi Min Mat Fac Gar Sto Gar Fac Fac Ext Cet Fac Upp Upp Zhi Pro Res Res Gar Res Qua Acc Damage Taken 44820 | . 485 264 1048 188 . 378 792 . 2681 1996 1341 1358 1941 2156 348 2103 1118 1707 . 5236 1681 6830 3519 705 . 6945 Core 5338 | . 81 42 83 11 . 70 102 . 265 165 59 196 200 113 13 62 164 59 . 449 205 428 839 116 . 1616 Absorbed by Shields 1540 | . . . . . . . . . . . . . . 173 253 . . . . 246 216 330 . 90 . 232 Reduced by Siege Mode 401 | . . . . . . . . . . . . . . . . 53 . . . . . 323 . . . 25 Core Remaining (%) 58 | 100 . 50 . . . 59 81 . . . 30 76 . . 67 . . . . 36 84 . . . 4 . Volleys Fired 1157 | . 39 7 63 18 . 29 79 1 62 101 39 49 67 96 14 45 16 44 15 83 42 134 18 18 . 78 Largest 3 | . 2 2 2 2 . 2 2 2 2 2 2 2 3 3 3 3 3 3 1 3 3 3 3 1 . 1 Hottest 264 | . 112 106 136 136 . 136 111 111 136 131 138 138 135 163 150 135 139 95 30 209 264 264 244 88 . 120 Shots Fired 2250 | . 77 11 124 33 . 55 157 2 101 145 68 81 147 206 28 104 39 109 14 204 105 300 44 17 1 78 Gun 1782 | . 77 11 109 . . 11 141 2 44 88 27 51 126 181 14 103 37 98 14 170 105 271 30 8 1 63 Cannon 356 | . . . 13 31 . 44 15 . 47 53 36 29 8 . 8 . . . . 19 . 29 14 . . 10 Launcher 88 | . . . 2 2 . . 1 . 10 4 5 1 13 7 6 1 2 11 . 9 . . . 9 . 5 Special 24 | . . . . . . . . . . . . . . 18 . . . . . 6 . . . . . . Kinetic 931 | . 22 . 42 . . 11 67 . . 60 . 51 114 126 10 81 14 98 7 76 17 133 1 . . 1 Thermal 738 | . 33 11 13 31 . 44 26 1 71 27 27 . . 6 4 15 23 . 7 114 81 123 . 8 1 72 Explosive 65 | . . . 2 2 . . 1 . 10 4 5 1 7 7 . 1 2 4 . 5 . . . 9 . 5 Electromagnetic 498 | . 22 . 67 . . . 63 1 20 54 36 29 26 49 14 7 . 7 . 9 7 44 43 . . . Robot Hit Streak 50 | . 11 7 27 8 . 19 13 1 20 24 19 25 19 21 27 24 16 14 11 11 17 50 10 3 . 14 Robot Miss Streak 6 | . 5 1 2 2 . 2 3 . 3 6 1 3 4 3 2 3 3 3 1 6 4 5 2 3 . 4 Penetration Max 2 | . . . . . . . . . . . . 1 2 1 1 1 1 1 . 1 . 1 . . . . Secondary Targets 31 | . 1 . . . . . 1 . 2 1 . 1 5 3 1 2 . 2 . 4 1 7 . . . . Max Gunslinging Chain 1 | . 1 . . . . . 1 . 1 1 . 1 1 1 1 1 . 1 . 1 1 1 . . . . Capacitor 104 | . . . . . . . . . . . . . . . . . . . . . . 32 . . . 72 Shots Hit Robots 1604 | . 43 9 89 18 . 38 102 1 75 132 54 59 99 142 20 67 31 72 13 133 70 211 52 6 . 68 Core Hits 1014 | . 19 6 53 14 . 19 48 1 52 116 31 36 109 102 18 24 29 59 8 108 34 69 12 14 . 33 Critical Hits 183 | . . . 2 4 . 5 . . 9 . 1 16 47 26 4 21 3 7 . 9 1 21 6 . . 1 Critical Kills 63 | . . . 1 2 . 2 . . 4 . . 5 16 7 4 6 2 2 . 2 1 6 2 . . 1 Critical Parts Destroyed 103 | . . . 1 2 . 3 . . 4 . 1 9 27 16 . 14 1 4 . 7 . 10 4 . . . Melee Attacks 53 | . . . . . . . . . . 5 . . . . . . . . . 1 . . 33 . . 14 Impact 19 | . . . . . . . . . . 5 . . . . . . . . . . . . . . . 14 Slashing 34 | . . . . . . . . . . . . . . . . . . . . 1 . . 33 . . . Piercing . | . . . . . . . . . . . . . . . . . . . . . . . . . . . Sneak Attacks . | . . . . . . . . . . . . . . . . . . . . . . . . . . . Combat Hostiles . | . . . . . . . . . . . . . . . . . . . . . . . . . . . Follow-up Attacks 2 | . . . . . . . . . . . . . . . . . . . . . . . . . . 2 Damage Inflicted 54606 | . 783 122 1999 605 . 787 2296 18 2713 4584 1869 1215 4170 5428 903 2325 1340 3198 361 4993 2138 6904 1676 1358 . 2821 Guns 30017 | . 732 122 1300 . . 91 1775 18 692 1824 457 326 1331 3552 283 1831 844 1647 361 2653 2138 5701 633 184 . 1522 Cannons 7339 | . . . 214 350 . 696 252 . 708 1206 719 679 197 . 173 . . . . 551 . 1153 268 . . 173 Explosions 15708 | . 51 . 481 255 . . 269 . 1313 1384 693 210 2642 1866 447 494 496 1551 . 1690 . . . 1174 . 692 Melee 1296 | . . . . . . . . . . 133 . . . . . . . . . . . . 775 . . 388 Ramming 204 | . . . 4 . . . . . . 37 . . . 10 . . . . . 57 . 50 . . . 46 Kinetic 14473 | . 130 . 369 . . 91 651 . . 1267 . 326 1081 2484 177 1384 294 1647 179 1044 368 2966 . . . 15 Thermal 16227 | . 446 122 407 350 . 696 724 . 1146 809 498 210 600 506 106 290 550 . 182 2086 1625 3010 . 184 . 1680 Explosive 12232 | . . . 188 255 . . 15 . 1224 1098 652 . 1646 1455 . 494 496 1262 . 1581 . . . 1174 . 692 Electromagnetic 10174 | . 207 . 1031 . . . 906 18 343 1240 719 679 843 973 620 157 . 289 . 225 145 878 901 . . . Impact 521 | . . . . . . . . . . 133 . . . . . . . . . . . . . . . 388 Slashing 775 | . . . . . . . . . . . . . . . . . . . . . . . 775 . . . Piercing . | . . . . . . . . . . . . . . . . . . . . . . . . . . . Highest Corruption 24 | . 3 3 1 1 1 1 . . . 1 1 9 2 4 4 3 4 4 4 4 11 9 24 24 24 12 Average Corruption 3 | . 2 3 1 1 1 1 . . . 1 1 6 1 3 4 2 3 4 4 4 4 3 15 24 24 7 Corruption Purged . | . . . . . . . . . . . . . . . . . . . . . . . . . . . Effects 322 | . 10 8 9 5 4 3 . . . 7 6 24 4 38 6 13 14 29 10 42 6 17 32 20 5 10 Message Errors 79 | . 4 2 4 1 3 1 . . . 1 4 7 1 6 2 2 6 5 6 6 2 6 2 4 . 4 Matter Fused 50 | . 2 2 . . . . . . . . . 5 . 6 1 2 2 6 1 11 . 2 6 1 1 2 Heat Flow Errors 33 | . 2 1 . . . . . . . . . 3 1 4 1 1 1 4 1 7 . 2 3 2 . . Energy Discharges 44 | . 1 2 1 1 1 2 . . . 2 2 3 1 7 1 2 3 6 1 5 . 1 1 . . 1 Parts Rejected 2 | . . . . . . . . . . . . . . . . . . . . 2 . . . . . . Data Loss (minor) 33 | . 1 1 3 2 . . . . . 3 . 1 . 3 . 2 . 3 . 4 2 2 2 3 . 1 Data Loss (major) 1 | . . . . . . . . . . . . . . . . . . . . . . . 1 . . . Misfires 4 | . . . . . . . . . . . . 1 . . . . . . . . 1 . . 1 1 . Alerts 2 | . . . . . . . . . . . . . . . . . . . . . 1 . . 1 . . Misdirections 14 | . . . . . . . . . . . . . . . . . . . . . . . 6 3 3 2 Targeting Errors 46 | . . . 1 . . . . . . 1 . 2 1 11 1 3 1 5 . 7 . 1 9 3 . . Weapon Failures 14 | . . . . 1 . . . . . . . 2 . 1 . 1 1 . 1 . . 3 2 2 . . Overload Shots 5 | . . . . . . . . . . 1 . . . . . . . . . 4 . . . . . . Effects 1 | . . . . . . . . . . . . . . . . . . . . 1 . . . . . . Heat Surge 1 | . . . . . . . . . . . . . . . . . . . . 1 . . . . . . Overflow Damage 930 | . . . 25 . . . 28 . 32 79 39 8 272 93 . 18 33 9 . 23 . 27 18 202 . 24 Projectiles 84 | . . . . . . . . . 8 27 3 . 4 . . . . . . 15 . 27 . . . . Explosions 804 | . . . 25 . . . 28 . 24 52 36 8 268 93 . 18 33 9 . 8 . . . 202 . . Melee 42 | . . . . . . . . . . . . . . . . . . . . . . . 18 . . 24 Knockbacks 2 | . . . . . . . . . . . . . . . . . . . . . . . . . . 2 Impact 2 | . . . . . . . . . . . . . . . . . . . . . . . . . . 2 Kinetic . | . . . . . . . . . . . . . . . . . . . . . . . . . . . Secondary . | . . . . . . . . . . . . . . . . . . . . . . . . . . . Self-Inflicted Damage 946 | . . . 168 18 . . 47 . 88 40 87 . 99 57 . . 32 52 . 212 . 25 . . . 21 Shots 35 | . . . 5 1 . . 1 . 3 1 5 . 4 3 . . 1 3 . 8 . . . . . . Rammed 23 | . . . 1 . . . . . . 2 . . . 1 . . . . . 8 . 1 . . . 10 Targets Rammed 25 | . . . 1 . . . . . . 3 . . . 1 . . . . . 9 . 1 . . . 10 Kicked . | . . . . . . . . . . . . . . . . . . . . . . . . . . . Crushed 2 | . . . . . . . . . . 1 . . . . . . . . . 1 . . . . . . Highest Temperature 417 | . 321 257 87 168 . 321 108 . 258 417 87 357 141 147 138 144 73 136 176 252 354 417 349 221 . 370 Average Temperature 91 | . 88 120 24 60 . 141 45 . 80 113 30 136 84 42 45 28 21 36 115 63 114 96 98 92 . 127 Received Heat Transfer 6621 | . 198 72 240 33 . 162 306 . 567 666 336 372 504 460 46 228 54 477 . 781 33 486 171 18 . 411 Effects 20 | . 2 1 . . . 2 . . . 1 . 5 . . . . . . . . . 3 . . . 6 Shutdowns 1 | . . . . . . . . . . . . . . . . . . . . . . 1 . . . . Energy Bleed 3 | . . . . . . . . . . . . 1 . . . . . . . . . . . . . 2 Interference 15 | . 2 1 . . . 2 . . . 1 . 4 . . . . . . . . . 2 . . . 3 Short Circuit 1 | . . . . . . . . . . . . . . . . . . . . . . . . . . 1 Siege Activations 7 | . . . . . . . . . . . . . . . . 2 . 1 . . . 3 . . . 1 Total Turns 146 | . . . . . . . . . . . . . . . . 43 . 12 . . . 88 . . . 3 Longest Duration 59 | . . . . . . . . . . . . . . . . 32 . 12 . . . 59 . . . 3 Robots Corrupted 28 | . 1 . . . . . . . . 2 2 3 3 1 5 . . 2 . 1 . 3 5 . . . Combat Hostiles 24 | . . . . . . . . . . 1 2 3 3 . 5 . . 2 . 1 . 2 5 . . . Parts Fried 77 | . 2 . 6 . . . 3 . 1 6 3 6 2 8 4 1 . 3 . 1 . 9 20 . . 2 Impact Corruptions 1 | . . . . . . . . . . . . . . . . . . . . . . . . . . 1 Robots Melted 3 | . 1 . . . . . . . . . . . . . . . . . . 1 . . . . . 1 Combat Hostiles 3 | . 1 . . . . . . . . . . . . . . . . . . 1 . . . . . 1 Parts Melted 69 | . 2 1 . . . 2 . . 1 4 1 . . . . . 1 . . 17 13 20 . . . 7 Heat Transferred 23016 | . 1012 333 646 629 . 1258 964 . 1950 1487 901 150 400 648 111 600 894 . 350 3283 1887 3182 . 259 . 2072 Parts Sabotaged 4 | . . . . . . . . . . . . . . 4 . . . . . . . . . . . . Parts Stolen . | . . . . . . . . . . . . . . . . . . . . . . . . . . . Parts Stripped . | . . . . . . . . . . . . . . . . . . . . . . . . . . . Power Chain Reactions 18 | . 1 . 7 . . . 1 . 1 4 1 . 1 2 . . . . . . . . . . . . Missiles Intercepted . | . . . . . . . . . . . . . . . . . . . . . . . . . . . Alert | -11 -10 -10 -9 -9 -9 -8 -8 -7 -7 -7 -7 -6 -5 -5 -5 -4 -4 -4 -4 -3 -3 -2 -2 -2 -2 -1 ------- Run | Scr Mat Min Mat Min Exi Min Mat Fac Gar Sto Gar Fac Fac Ext Cet Fac Upp Upp Zhi Pro Res Res Gar Res Qua Acc Peak Influence 1557 | . 360 93 485 328 . 135 565 223 873 1334 1557 962 1122 1361 1185 1138 . . . . 283 395 393 548 323 626 Initial 867 | . . 58 . 148 . . 40 188 16 410 867 816 438 549 761 663 . . . . . 91 228 170 308 193 Average 483 | . 182 80 191 174 . 58 315 128 548 940 1269 794 636 733 981 887 . . . . 97 240 333 303 314 374 Maximum Alert Level 4 | . 1 . 2 1 . . 2 1 3 4 4 3 4 4 4 4 . . . . 1 1 1 2 1 2 Low Security (%) 30 | . 54 100 55 61 . 100 21 97 9 . . . . . . . . . . . 93 31 . 56 . 4 Level 1 22 | . 45 . 37 38 . . 48 2 25 . . . . . . . . . . . 6 68 100 9 100 60 Level 2 17 | . . . 6 . . . 30 . 32 26 . 12 66 46 . 37 . . . . . . . 33 . 34 Level 3 21 | . . . . . . . . . 33 44 26 87 28 48 77 53 . . . . . . . . . . Level 4 7 | . . . . . . . . . . 29 73 . 4 5 22 8 . . . . . . . . . . Level 5 . | . . . . . . . . . . . . . . . . . . . . . . . . . . . High Security . | . . . . . . . . . . . . . . . . . . . . . . . . . . . Max Security . | . . . . . . . . . . . . . . . . . . . . . . . . . . . Squads Dispatched 68 | . 3 . 4 . . . 2 1 . 11 . 4 13 5 . 3 . 1 . 1 3 8 . . . 9 Investigation 13 | . 3 . 3 . . . 1 1 . 1 . . 1 1 . . . . . . . 1 . . . 1 Extermination 14 | . . . . . . . . . . 2 . 2 4 . . . . . . . 2 2 . . . 2 Reinforcement 22 | . . . 1 . . . 1 . . 4 . 1 6 1 . 2 . . . . 1 2 . . . 3 Assault 10 | . . . . . . . . . . 1 . 1 2 3 . 1 . 1 . 1 . . . . . . Garrison 9 | . . . . . . . . . . 3 . . . . . . . . . . . 3 . . . 3 Intercept . | . . . . . . . . . . . . . . . . . . . . . . . . . . . Construction Impeded 6 | . . . . . . . . . . 1 . . 2 1 . 1 . . . . . 1 . . . . Haulers Reinforced 11 | . . . . . . . . . . 2 . 1 2 . . 1 . . . . 1 1 . . . 3 Stealth | -11 -10 -10 -9 -9 -9 -8 -8 -7 -7 -7 -7 -6 -5 -5 -5 -4 -4 -4 -4 -3 -3 -2 -2 -2 -2 -1 --------- Run | Scr Mat Min Mat Min Exi Min Mat Fac Gar Sto Gar Fac Fac Ext Cet Fac Upp Upp Zhi Pro Res Res Gar Res Qua Acc Distress Signals 33 | . 2 . 4 . . . 4 . . 4 . 1 3 4 1 . . . . . 1 4 . 2 . 3 Communications Jammed . | . . . . . . . . . . . . . . . . . . . . . . . . . . . Distress Signals . | . . . . . . . . . . . . . . . . . . . . . . . . . . . Times Spotted 597 | . 19 14 30 10 . 9 27 1 32 54 23 15 47 63 15 19 21 22 . 33 14 42 23 12 2 50 Peak Tracking Total 13 | . 3 13 6 4 . 3 4 1 8 5 5 6 11 6 5 7 5 8 . 7 4 9 11 6 2 11 Tactical Retreats 66 | . 2 2 . . . . . . 8 7 2 2 7 5 . 2 6 1 . 3 . 3 3 . . 13 Traps | -11 -10 -10 -9 -9 -9 -8 -8 -7 -7 -7 -7 -6 -5 -5 -5 -4 -4 -4 -4 -3 -3 -2 -2 -2 -2 -1 ------- Run | Scr Mat Min Mat Min Exi Min Mat Fac Gar Sto Gar Fac Fac Ext Cet Fac Upp Upp Zhi Pro Res Res Gar Res Qua Acc Traps Triggered 36 | . 5 . 2 . . . 2 . . 2 7 4 5 3 . . . . . . 3 1 1 . . 1 Indirectly . | . . . . . . . . . . . . . . . . . . . . . . . . . . . Trap Hack Attempts . | . . . . . . . . . . . . . . . . . . . . . . . . . . . Triggered . | . . . . . . . . . . . . . . . . . . . . . . . . . . . Disarmed . | . . . . . . . . . . . . . . . . . . . . . . . . . . . Reprogrammed . | . . . . . . . . . . . . . . . . . . . . . . . . . . . Reused . | . . . . . . . . . . . . . . . . . . . . . . . . . . . Traps Extracted . | . . . . . . . . . . . . . . . . . . . . . . . . . . . Installed . | . . . . . . . . . . . . . . . . . . . . . . . . . . . Triggered 4 | . 1 . . . . . . . . 2 . . . . . . . . . 1 . . . . . . Machines | -11 -10 -10 -9 -9 -9 -8 -8 -7 -7 -7 -7 -6 -5 -5 -5 -4 -4 -4 -4 -3 -3 -2 -2 -2 -2 -1 ---------- Run | Scr Mat Min Mat Min Exi Min Mat Fac Gar Sto Gar Fac Fac Ext Cet Fac Upp Upp Zhi Pro Res Res Gar Res Qua Acc Machines Disabled 42 | . . . 2 . . 1 3 . 1 4 . 7 2 2 3 12 . . . 2 . . . . 1 2 Max in Single Turn 11 | . . . 1 . . 1 2 . 1 1 . 7 1 1 2 11 . . . 1 . . . . 1 1 Garrison Relay 1 | . . . . . . . . . 1 . . . . . . . . . . . . . . . . . Machines Sabotaged . | . . . . . . . . . . . . . . . . . . . . . . . . . . . Garrisons Compromised . | . . . . . . . . . . . . . . . . . . . . . . . . . . . Overloaded Fab Kills . | . . . . . . . . . . . . . . . . . . . . . . . . . . . Fab Network Shutdowns . | . . . . . . . . . . . . . . . . . . . . . . . . . . . Hacking | -11 -10 -10 -9 -9 -9 -8 -8 -7 -7 -7 -7 -6 -5 -5 -5 -4 -4 -4 -4 -3 -3 -2 -2 -2 -2 -1 --------- Run | Scr Mat Min Mat Min Exi Min Mat Fac Gar Sto Gar Fac Fac Ext Cet Fac Upp Upp Zhi Pro Res Res Gar Res Qua Acc Machines Accessed 37 | . 3 . 3 . 1 . 4 2 . 4 . 1 3 3 . 1 2 . 4 1 1 2 . . . 2 Terminals 21 | . 2 . 1 . . . 4 . . 3 . 1 3 3 . 1 . . . . 1 . . . . 2 Fabricators . | . . . . . . . . . . . . . . . . . . . . . . . . . . . Repair Stations . | . . . . . . . . . . . . . . . . . . . . . . . . . . . Recycling Units 4 | . 1 . 2 . . . . 1 . . . . . . . . . . . . . . . . . . Scanalyzers 1 | . . . . . . . . . . . . . . . . . . . . . . 1 . . . . Garrison Access 3 | . . . . . . . . 1 . 1 . . . . . . . . . . . 1 . . . . Total Hacks 91 | . 8 . 4 . 1 . 18 2 . 8 . 2 6 6 . 2 7 . 17 1 1 3 . . . 5 Successful 60 | . 6 . 4 . 1 . 10 2 . 4 . . 3 3 . . 7 . 17 1 . 1 . . . 1 Failed 30 | . 1 . . . . . 8 . . 4 . 2 3 3 . 2 . . . . 1 2 . . . 4 Catastrophic 8 | . . . . . . . 4 . . . . . . 1 . 1 . . . . 1 . . . . 1 Database Lockouts 1 | . 1 . . . . . . . . . . . . . . . . . . . . . . . . . Manual 46 | . 10 . 5 . . . 15 1 . 6 . . 3 . . 2 . . . . . . . . . 4 Terminals 56 | . 7 . 2 . . . 18 . . 7 . 2 6 6 . 2 . . . . 1 . . . . 5 Fabricators . | . . . . . . . . . . . . . . . . . . . . . . . . . . . Repair Stations . | . . . . . . . . . . . . . . . . . . . . . . . . . . . Recycling Units 4 | . 1 . 2 . . . . 1 . . . . . . . . . . . . . . . . . . Scanalyzers 2 | . . . . . . . . . . . . . . . . . . . . . . 2 . . . . Garrison Access 3 | . . . . . . . . 1 . 1 . . . . . . . . . . . 1 . . . . Terminal Hacks 41 | . 2 . 1 . 1 . 5 . . 1 . . 2 3 . . 7 . 17 1 . . . . . 1 Record 15 | . . . . . 1 . 2 . . . . . . . . . 6 . 5 1 . . . . . . Part Schematic 4 | . . . . . . . . . . . . . . . . . . . 4 . . . . . . . Robot Analysis 9 | . 1 . 1 . . . 3 . . . . . . . . . . . 4 . . . . . . . Prototype ID Bank 4 | . . . . . . . . . . . . . . . . . . . 4 . . . . . . . Open Door 5 | . . . . . . . . . . . . . 1 3 . . 1 . . . . . . . . . Level Access Points 1 | . . . . . . . . . . . . . 1 . . . . . . . . . . . . . Branch Access Points 1 | . 1 . . . . . . . . . . . . . . . . . . . . . . . . . Terminal Index 1 | . . . . . . . . . . . . . . . . . . . . . . . . . . 1 Alert Level 1 | . . . . . . . . . . 1 . . . . . . . . . . . . . . . . Fabricator Hacks . | . . . . . . . . . . . . . . . . . . . . . . . . . . . Repair Station Hacks . | . . . . . . . . . . . . . . . . . . . . . . . . . . . Recycling Unit Hacks . | . . . . . . . . . . . . . . . . . . . . . . . . . . . Scanalyzer . | . . . . . . . . . . . . . . . . . . . . . . . . . . . Garrison Access Hacks 3 | . . . . . . . . 1 . 1 . . . . . . . . . . . 1 . . . . Unlock Access 3 | . . . . . . . . 1 . 1 . . . . . . . . . . . 1 . . . . Unauthorized Hacks 16 | . 4 . 3 . . . 5 1 . 2 . . 1 . . . . . . . . . . . . . Terminals 12 | . 3 . 1 . . . 5 . . 2 . . 1 . . . . . . . . . . . . . Track 7 | . 2 . 1 . . . 2 . . 1 . . 1 . . . . . . . . . . . . . Botnet 5 | . 1 . . . . . 3 . . 1 . . . . . . . . . . . . . . . . Fabricators . | . . . . . . . . . . . . . . . . . . . . . . . . . . . Repair Stations . | . . . . . . . . . . . . . . . . . . . . . . . . . . . Recycling Units 4 | . 1 . 2 . . . . 1 . . . . . . . . . . . . . . . . . . Tunnel 4 | . 1 . 2 . . . . 1 . . . . . . . . . . . . . . . . . . Scanalyzers . | . . . . . . . . . . . . . . . . . . . . . . . . . . . Garrison Access . | . . . . . . . . . . . . . . . . . . . . . . . . . . . Data Cores Recovered . | . . . . . . . . . . . . . . . . . . . . . . . . . . . Used . | . . . . . . . . . . . . . . . . . . . . . . . . . . . Hacking Detections 19 | . . . 1 . . . 4 . . 4 . 1 2 1 . 1 . . . . 1 2 . . . 2 Full Trace Events 3 | . . . . . . . 1 . . . . . . 1 . . . . . . . . . . . 1 Feedback Events . | . . . . . . . . . . . . . . . . . . . . . . . . . . . Feedback Blocked . | . . . . . . . . . . . . . . . . . . . . . . . . . . . Robot Schematics Acquired . | . . . . . . . . . . . . . . . . . . . . . . . . . . . Robots Built . | . . . . . . . . . . . . . . . . . . . . . . . . . . . Matter . | . . . . . . . . . . . . . . . . . . . . . . . . . . . Time . | . . . . . . . . . . . . . . . . . . . . . . . . . . . Total Robot Build Rating . | . . . . . . . . . . . . . . . . . . . . . . . . . . . Part Schematics Acquired 4 | . . . . . . . . . . . . . . . . . . . 4 . . . . . . . Parts Built . | . . . . . . . . . . . . . . . . . . . . . . . . . . . Matter . | . . . . . . . . . . . . . . . . . . . . . . . . . . . Time . | . . . . . . . . . . . . . . . . . . . . . . . . . . . Total Part Build Rating . | . . . . . . . . . . . . . . . . . . . . . . . . . . . Parts Repaired . | . . . . . . . . . . . . . . . . . . . . . . . . . . . Time . | . . . . . . . . . . . . . . . . . . . . . . . . . . . Parts Recycled . | . . . . . . . . . . . . . . . . . . . . . . . . . . . Recycled Matter . | . . . . . . . . . . . . . . . . . . . . . . . . . . . Retrieved Matter . | . . . . . . . . . . . . . . . . . . . . . . . . . . . Retrieved Components . | . . . . . . . . . . . . . . . . . . . . . . . . . . . Parts Scanalyzed . | . . . . . . . . . . . . . . . . . . . . . . . . . . . Part Schematics Acquired . | . . . . . . . . . . . . . . . . . . . . . . . . . . . Parts Damaged . | . . . . . . . . . . . . . . . . . . . . . . . . . . . Bothacking | -11 -10 -10 -9 -9 -9 -8 -8 -7 -7 -7 -7 -6 -5 -5 -5 -4 -4 -4 -4 -3 -3 -2 -2 -2 -2 -1 ------------ Run | Scr Mat Min Mat Min Exi Min Mat Fac Gar Sto Gar Fac Fac Ext Cet Fac Upp Upp Zhi Pro Res Res Gar Res Qua Acc Used RIF Installer 1 | . . . . . . . . . . . 1 . . . . . . . . . . . . . . . Robots Hacked . | . . . . . . . . . . . . . . . . . . . . . . . . . . . Non-combat . | . . . . . . . . . . . . . . . . . . . . . . . . . . . Combat . | . . . . . . . . . . . . . . . . . . . . . . . . . . . Robot Hacks Applied . | . . . . . . . . . . . . . . . . . . . . . . . . . . . Relay Couplers Released 5 | . . . . . . . . . 5 . . . . . . . . . . . . . . . . . Machine Destruction 5 | . . . . . . . . . 5 . . . . . . . . . . . . . . . . . Robots Rewired 14 | . . . . . . . . . . . . . . 11 . . . 1 . 2 . . . . . . Allies Hacked 1 | . . . . . . . . . . . . . . 1 . . . . . . . . . . . . Hacks Repelled . | . . . . . . . . . . . . . . . . . . . . . . . . . . . Allies | -11 -10 -10 -9 -9 -9 -8 -8 -7 -7 -7 -7 -6 -5 -5 -5 -4 -4 -4 -4 -3 -3 -2 -2 -2 -2 -1 -------- Run | Scr Mat Min Mat Min Exi Min Mat Fac Gar Sto Gar Fac Fac Ext Cet Fac Upp Upp Zhi Pro Res Res Gar Res Qua Acc Total Allies 22 | . . 3 . . . . . . . . . . . 16 . . . 1 . 2 . . . . . . Largest Group 8 | . . 3 . . . . . . . . . . . 8 1 1 . 1 . 2 . . . . . . Highest-Rated Group 231 | . . 40 . . . . . . . . . . . 231 156 140 . 49 . 84 . . . . . . Highest-Rated Ally 156 | . . 16 . . . . . . . . . . . 156 156 140 . 49 . 42 . . . . . . Total Orders 2 | . . . . . . . . . . . . . . . . 2 . . . . . . . . . . EXPLORE 2 | . . . . . . . . . . . . . . . . 2 . . . . . . . . . . Ally Attacks 171 | . . 16 . . . . . . . . . . . 119 21 . . 2 . 13 . . . . . . Total Damage 4641 | . . 141 . . . . . . . . . . . 3297 764 . . 58 . 381 . . . . . . Kills 33 | . . 2 . . . . . . . . . . . 24 7 . . . . . . . . . . . Allies Corrupted 1 | . . . . . . . . . . . . . . . . 1 . . . . . . . . . . Allies Melted 1 | . . . . . . . . . . . . . . . . . . . . 1 . . . . . . Intel | -11 -10 -10 -9 -9 -9 -8 -8 -7 -7 -7 -7 -6 -5 -5 -5 -4 -4 -4 -4 -3 -3 -2 -2 -2 -2 -1 ------- Run | Scr Mat Min Mat Min Exi Min Mat Fac Gar Sto Gar Fac Fac Ext Cet Fac Upp Upp Zhi Pro Res Res Gar Res Qua Acc Robot Analysis Total 9 | . 1 . 1 . . . 3 . . . . . . . . . . . 4 . . . . . . . Derelict Logs Recovered 4 | . . 1 . 2 . . . . . . . . . . . . . 1 . . . . . . . . Drone Launches 6 | . . . . . . . . . . . . . . . . 6 . . . . . . . . . . Drone Recoveries 2 | . . . . . . . . . . . . . . . . 2 . . . . . . . . . . Exploration | -11 -10 -10 -9 -9 -9 -8 -8 -7 -7 -7 -7 -6 -5 -5 -5 -4 -4 -4 -4 -3 -3 -2 -2 -2 -2 -1 ------------- Run | Scr Mat Min Mat Min Exi Min Mat Fac Gar Sto Gar Fac Fac Ext Cet Fac Upp Upp Zhi Pro Res Res Gar Res Qua Acc Turns Passed 21627 | . 997 432 1303 1028 723 984 805 643 875 1172 1007 1109 1008 1547 308 544 603 1150 492 1622 545 1160 372 211 63 924 Spaces Moved 11416 | 1 508 231 612 605 449 560 322 453 412 474 465 525 422 708 134 214 299 533 267 752 236 510 267 236 93 1128 Core 428 | . . . . . . . . . . . . . . . . . . . . . . . . . . 428 Treads 8070 | . 439 231 612 605 449 560 322 29 171 474 465 525 356 489 134 214 299 533 88 437 236 307 . . . 95 Legs 1274 | 1 69 . . . . . . 424 241 . . . . 45 . . . . 179 315 . . . . . . Wheels 240 | . . . . . . . . . . . . . 66 174 . . . . . . . . . . . . Hover 1205 | . . . . . . . . . . . . . . . . . . . . . . 203 267 236 93 406 Flight 199 | . . . . . . . . . . . . . . . . . . . . . . . . . . 199 Fastest Speed 27 | 120 120 160 160 160 160 160 160 130 130 155 160 160 130 96 160 160 180 180 150 120 160 68 68 60 60 27 Average Speed 146 | 120 159 178 160 160 160 160 160 133 152 161 175 177 173 159 163 172 180 180 160 160 160 132 68 63 60 60 Slowest Speed 290 | 120 180 180 160 160 160 160 160 190 180 180 180 180 180 200 180 180 180 180 240 180 160 290 76 68 60 165 Overloaded Moves . | . . . . . . . . . . . . . . . . . . . . . . . . . . . Propulsion Burnouts . | . . . . . . . . . . . . . . . . . . . . . . . . . . . Robots Hopped 2 | . . . . . . . . . . . . . . . . . . . . . . . . . . 2 Cave-ins Triggered . | . . . . . . . . . . . . . . . . . . . . . . . . . . . Exploration Rate (%) 47 | 2 83 50 53 99 88 98 38 14 50 83 57 18 12 72 60 19 54 69 63 85 7 14 38 11 15 35 Regions Visited 26 Branch Regions 12 Pre-discovered Areas 11 | . 1 1 2 1 . . . 1 . . . . . . . . 1 1 3 . . . . . . . Known Exits Taken 6 | . 1 . . . . 1 . 1 . 1 . . . . 1 . . . . . . 1 . . . . Unknown Exits Taken 17 | 1 . 1 1 1 1 . 1 . . . . 1 1 1 . 1 1 1 1 1 1 . . 1 1 . Scrap Searched 12 | . . 1 . 1 . 1 . . . . . . . . . . . 4 . 5 . . . . . . Spaces Dug 58 | . . . 10 9 . . 10 . . . . 11 . . . 18 . . . . . . . . . . Terrain Destroyed 984 | . 2 . 48 19 . 19 53 . 33 69 36 46 84 101 . 51 53 68 . 140 3 11 . 89 . 59 Melee . | . . . . . . . . . . . . . . . . . . . . . . . . . . . Projectile 116 | . . . . . . . . . 1 . . . 6 5 . 22 3 18 . 41 3 11 . . . 6 AOE 868 | . 2 . 48 19 . 19 53 . 32 69 36 46 78 96 . 29 50 50 . 99 . . . 89 . 53 Terrain Rammed . | . . . . . . . . . . . . . . . . . . . . . . . . . . . Walls Destroyed . | . . . . . . . . . . . . . . . . . . . . . . . . . . . Machines Disabled . | . . . . . . . . . . . . . . . . . . . . . . . . . . . Actions | -11 -10 -10 -9 -9 -9 -8 -8 -7 -7 -7 -7 -6 -5 -5 -5 -4 -4 -4 -4 -3 -3 -2 -2 -2 -2 -1 --------- Run | Scr Mat Min Mat Min Exi Min Mat Fac Gar Sto Gar Fac Fac Ext Cet Fac Upp Upp Zhi Pro Res Res Gar Res Qua Acc Total 14269 | . 620 241 830 631 456 594 464 494 546 717 583 618 564 947 202 300 328 632 319 981 336 791 366 272 100 1337 Wait 344 | . 41 . 44 . . . 12 . 30 32 11 14 7 7 . 12 . 8 . 5 9 65 14 2 . 31 Move 11386 | . 507 230 611 604 448 559 321 452 411 473 464 524 421 707 133 213 298 532 266 751 235 509 266 235 92 1124 Hop 2 | . . . . . . . . . . . . . . . . . . . . . . . . . . 2 Pick Up 250 | . 16 2 27 2 4 1 14 10 5 25 10 3 8 17 11 8 . 13 8 19 12 15 4 1 2 13 Fast Attach 229 | . 1 . 8 . . . 3 8 5 19 2 4 15 17 9 5 2 5 10 28 12 21 15 12 2 26 Attach 124 | . 2 2 4 . . 1 2 . 9 11 5 4 8 3 2 3 4 5 2 21 4 10 6 2 1 13 Detach 30 | . . . . . . . . . . 4 1 1 2 . 3 1 . . 1 2 1 2 2 . 1 9 Swap 232 | . 6 . 27 4 . 2 12 5 20 16 25 11 17 28 7 5 5 6 3 10 4 14 3 . . 2 Drop 330 | . 8 . 45 3 4 2 21 18 4 28 14 8 15 25 23 7 3 8 14 18 17 20 4 2 2 17 Fire 1157 | . 39 7 63 18 . 29 79 1 62 101 39 49 67 96 14 45 16 44 15 83 42 134 18 18 . 78 Melee 51 | . . . . . . . . . . 5 . . . . . . . . . 1 . . 33 . . 12 Ram 12 | . . . . . . . . . . . . . . . . . . . . . . 1 1 . . 10 Kick . | . . . . . . . . . . . . . . . . . . . . . . . . . . . Crush 14 | . . . 1 . . . . . . 3 . . . 1 . . . . . 9 . . . . . . Escape Stasis 28 | . . . . . . . . . . . 12 . 4 12 . . . . . . . . . . . . Rewire 79 | . . . . . . . . . . . . . . 34 . . . 11 . 34 . . . . . . Trap . | . . . . . . . . . . . . . . . . . . . . . . . . . . . Miscellaneous 1 | . . . . . . . . . . . . . . . . 1 . . . . . . . . . . Route ------- -11/Scrapyard -10/Materials (discovered 5 exits: *Mat x3 / *Min x2) -10/Mines -9/Materials (discovered 2 exits: *Mat / [*Min]) -9/Mines (discovered 3 exits: *Mat x2 / *Exi) -9/Exiles -8/Mines (discovered 2 exits: *Mat x2) -8/Materials (discovered 2 exits: *Fac x2) -7/Factory (discovered 3 exits: *Sto / [Low] / Gar) -7/Garrison -7/Storage (discovered 2 exits: Rec / Gar) -7/Garrison (discovered 3 exits: *Fac x3) -6/Factory -5/Factory (discovered 6 exits: Fac x4 / [Upp] / *Ext) -5/Extension (discovered 2 exits: *Fac / [*Cet]) -5/Cetus (discovered 2 exits: *Fac / [*Arc]) -4/Factory -4/Upper Caves -4/Upper Caves (discovered 2 exits: *Res / *Zhi) -4/Zhirov -3/Proximity Caves -3/Research -2/Research -2/Garrison -2/Research -2/Quarantine -1/Access History --------- Turn | Location | Event 1 | -11/Scrapyard | Discovered new exit (range 0) 1 | -11/Scrapyard | Entered Materials 58 | -10/Materials | Identified exit to Mines 58 | -10/Materials | Central database locked down 211 | -10/Materials | Discovered new exit (range 10) 307 | -10/Materials | Build established: Mutant 520 | -10/Materials | Discovered new exit (range 10) 727 | -10/Materials | Discovered new exit (range 14) 998 | -10/Materials | Entered Mines 1023 | -10/Mines | Met a Derelict bent on vengeance 1154 | -10/Mines | A weapon hastily lodged in a ceiling crevice suddenly fell to the ground 1271 | -10/Mines | Discovered new exit (range 6) 1298 | -10/Mines | Assisted by bots powering up and referring to "LRC-V3" 1372 | -10/Mines | Assembled infested the area 1430 | -10/Mines | Entered Materials 1430 | -9/Materials | Evolved 2 slots: Propulsion x1, Utility x1 2455 | -9/Materials | Discovered new exit (range 3) 2620 | -9/Materials | Build established: Scavenger-Mutant 2714 | -9/Materials | Discovered new exit (range 9) 2733 | -9/Materials | Entered Mines 3097 | -9/Mines | Learned location of Storage (-7) 3266 | -9/Mines | Identified exit to Materials 3276 | -9/Mines | Discovered exit to Materials (range 3) 3312 | -9/Mines | Deemed a non-threat by the Exiles lab entrance 3312 | -9/Mines | Discovered new exit (range 5) 3761 | -9/Mines | Entered Exiles 3761 | -9/Exiles | Found Exiles lab abandoned 4468 | -9/Exiles | Discovered new exit (range 10) 4484 | -9/Exiles | Entered Mines 4703 | -8/Mines | Discovered exit to Materials (range 2) 4716 | -8/Mines | Discovered exit to Materials (range 3) 5468 | -8/Mines | Entered Materials 5468 | -8/Materials | Evolved 2 slots: Utility x2 5883 | -8/Materials | Build established: Mutant 5913 | -8/Materials | Discovered new exit (range 4) 6204 | -8/Materials | Discovered new exit (range 10) 6273 | -8/Materials | Entered Factory 6273 | -7/Factory | Evolved 2 slots: Utility x2 6746 | -7/Factory | Discovered new exit (range 17) 6872 | -7/Factory | Discovered new exit (range 17) 6915 | -7/Factory | Identified exit to Garrison 6916 | -7/Factory | Entered Garrison 6958 | -7/Garrison | Triggered checkpoint 7016 | -7/Garrison | Triggered checkpoint 7144 | -7/Garrison | Triggered checkpoint 7217 | -7/Garrison | Triggered checkpoint 7252 | -7/Garrison | Destroyed 11 combat bots 7279 | -7/Garrison | Discovered new exit (range 14) 7330 | -7/Garrison | Triggered checkpoint 7467 | -7/Garrison | Lost 4 parts (1n1u2w) 7571 | -7/Garrison | Garrison Relay disabled 7618 | -7/Garrison | Triggered checkpoint 7715 | -7/Garrison | Spotted B-75 Beast 7715 | -7/Garrison | Spotted B-75 Beast 7791 | -7/Garrison | Entered Storage 7792 | -7/Storage | Identified exit to Recycling 7817 | -7/Storage | Lost 3 parts (2u1w) 7820 | -7/Storage | Garrison activated, responded to threat 8148 | -7/Storage | Build established: Scavenger-Mutant 8267 | -7/Storage | Lost 4 parts (1p1u2w) 8339 | -7/Storage | Core integrity fell below 50% 8385 | -7/Storage | Lost 3 parts (2u1w) 8591 | -7/Storage | First assault squad dispatched 8751 | -7/Storage | Found Prototype Launcher 8751 | -7/Storage | Identified Rocket Array 8961 | -7/Storage | Identified exit to Garrison 8963 | -7/Storage | Entered Garrison 8984 | -7/Garrison | Triggered checkpoint 9208 | -7/Garrison | Triggered checkpoint 9258 | -7/Garrison | Triggered checkpoint 9316 | -7/Garrison | Build established: Mutant 9334 | -7/Garrison | Discovered new exit (range 11) 9526 | -7/Garrison | Discovered new exit (range 17) 9640 | -7/Garrison | Triggered checkpoint 9792 | -7/Garrison | Discovered new exit (range 17) 9827 | -7/Garrison | Installed Relay Interface Framework 9970 | -7/Garrison | Entered Factory 9970 | -6/Factory | Evolved 2 slots: Power x1, Utility x1 10005 | -6/Factory | Build established: Scavenger-Mutant 10006 | -6/Factory | Spotted B-75 Beast 10557 | -6/Factory | Discovered new exit (range 16) 10670 | -6/Factory | First assault squad dispatched 10896 | -6/Factory | Lost 3 parts (1n2u) 11079 | -6/Factory | Entered another Factory area 11079 | -5/Factory | Evolved 2 slots: Utility x1, Weapon x1 11402 | -5/Factory | Destroyed 7 combat bots 11679 | -5/Factory | First assault squad dispatched 11709 | -5/Factory | Identified exit to Factory 12057 | -5/Factory | Lost 3 parts (1n2u) 12060 | -5/Factory | Destroyed 11 combat bots 12063 | -5/Factory | Discovered new exit (range 19) 12080 | -5/Factory | Discovered new exit (range 19) 12087 | -5/Factory | Entered Extension 12236 | -5/Extension | Rescued a captive Derelict 12236 | -5/Extension | Rescued a captive Derelict 12287 | -5/Extension | Disrupted transfer network 12569 | -5/Extension | Rescued a captive Derelict 12570 | -5/Extension | Rescued a captive Derelict 12687 | -5/Extension | First assault squad dispatched 13076 | -5/Extension | Build established: Scavenger-Skirmisher 13156 | -5/Extension | Spotted B-75 Beast 13174 | -5/Extension | Destroyed B-75 Beast 13201 | -5/Extension | Spotted B-75 Beast 13218 | -5/Extension | Destroyed B-75 Beast 13364 | -5/Extension | Rescued A7 13554 | -5/Extension | Discovered new exit (range 23) 13556 | -5/Extension | Discovered exit to Factory (range 22) 13562 | -5/Extension | Build established: Scavenger-Gunner 13613 | -5/Extension | Disrupted transfer network 13634 | -5/Extension | Entered Cetus 13634 | -5/Cetus | Accompanied by 1 ally (A7) 13639 | -5/Cetus | Acquired a Cetus Manufacturing Module code from A7 13660 | -5/Cetus | Spotted Cetus Guard 13660 | -5/Cetus | Spotted Cetus Guard 13660 | -5/Cetus | Spotted Cetus Guard 13660 | -5/Cetus | Spotted Cetus Guard 13671 | -5/Cetus | Allies destroyed Cetus Guard 13672 | -5/Cetus | Destroyed Cetus Guard 13677 | -5/Cetus | Destroyed Cetus Guard 13678 | -5/Cetus | Allies destroyed Cetus Guard 13776 | -5/Cetus | Cetus Manufacturing Module disabled 13819 | -5/Cetus | Discovered new exit (range 22) 13857 | -5/Cetus | Spotted Cetus Guard 13857 | -5/Cetus | Spotted Cetus Guard 13857 | -5/Cetus | Spotted Cetus Guard 13857 | -5/Cetus | Spotted Cetus Guard 13861 | -5/Cetus | Discovered exit to Factory (range 22) 13871 | -5/Cetus | Allies destroyed Cetus Guard 13874 | -5/Cetus | Destroyed Cetus Guard 13874 | -5/Cetus | Destroyed Cetus Guard 13876 | -5/Cetus | Destroyed Cetus Guard 13895 | -5/Cetus | Met Revision 17 13942 | -5/Cetus | Entered Factory 13942 | -4/Factory | Accompanied by 1 ally (A7) 13942 | -4/Factory | Evolved 2 slots: Utility x2 14281 | -4/Factory | Discovered new exit (range 26) 14442 | -4/Factory | First assault squad dispatched 14470 | -4/Factory | Lost 3 parts (1n1u1w) 14486 | -4/Factory | Entered Upper Caves 14762 | -4/Upper Caves | Lost 4 parts (1n1u2w) 14773 | -4/Upper Caves | Learned Research emergency access door positions 14773 | -4/Upper Caves | Learned Armory stockpile data 15007 | -4/Upper Caves | Discovered new exit (range 6) 15041 | -4/Upper Caves | Build established: Scavenger-Tank 15089 | -4/Upper Caves | Entered another Upper Caves area 15119 | -4/Upper Caves | Discovered new exit (range 8) 15390 | -4/Upper Caves | Build established: Scavenger-Mutant 15408 | -4/Upper Caves | Learned location of Testing (-3) 15808 | -4/Upper Caves | Build established: Scavenger-Tank 15909 | -4/Upper Caves | Attracted the attention of an 0b10 outpost 15955 | -4/Upper Caves | Destroyed 8 combat bots 16167 | -4/Upper Caves | Discovered new exit (range 6) 16173 | -4/Upper Caves | Encountered a Warlord checkpoint 16239 | -4/Upper Caves | Entered Zhirov 16239 | -4/Zhirov | Discovered new exit (range 3) 16273 | -4/Zhirov | Met Zhirov 16315 | -4/Zhirov | Learned location of Command (-1) 16338 | -4/Zhirov | Zhirov requested help retrieving the SGEMP Prototype 16375 | -4/Zhirov | Found Alien Artifact 16375 | -4/Zhirov | Identified Integrated Dissipator 16375 | -4/Zhirov | Installed Integrated Dissipator, increased core heat dissipation (+20) 16567 | -4/Zhirov | Found Alien Artifact 16731 | -4/Zhirov | Entered Proximity Caves 16811 | -3/Proximity Caves | Lost 3 parts (3u) 17006 | -3/Proximity Caves | Lost 6 parts (3u3w) 17090 | -3/Proximity Caves | Attracted the attention of an 0b10 outpost 17131 | -3/Proximity Caves | Destroyed 7 combat bots 17136 | -3/Proximity Caves | Lost 5 parts (1p2u2w) 17268 | -3/Proximity Caves | Build established: Scavenger-Gunner 17496 | -3/Proximity Caves | Core integrity fell below 50% 17573 | -3/Proximity Caves | Lost 10 parts (1p6u3w) 17954 | -3/Proximity Caves | Lost 4 parts (1p1n2w) 18091 | -3/Proximity Caves | Found Alien Artifact 18195 | -3/Proximity Caves | Attracted the attention of an 0b10 checkpoint 18259 | -3/Proximity Caves | Discovered new exit (range 9) 18353 | -3/Proximity Caves | Entered Research 18353 | -3/Research | Evolved 2 slots: Propulsion x1, Utility x1 18434 | -3/Research | Spotted B-86 Titan 18836 | -3/Research | Discovered new exit (range 15) 18846 | -3/Research | System corruption reached 10% 18898 | -3/Research | Entered another Research area 18898 | -2/Research | Evolved 2 slots: Power x1, Utility x1 19177 | -2/Research | Build established: Scavenger-Tank 19587 | -2/Research | Lost 11 parts (1p4n3u3w) 19750 | -2/Research | Destroyed B-90 Cyclops 19758 | -2/Research | Garrison activated, responded to threat 19783 | -2/Research | Found Quantum Capacitor 19897 | -2/Research | Garrison activated, responded to threat 19898 | -2/Research | Spotted B-90 Cyclops 19941 | -2/Research | Lost 4 parts (1p2u1w) 20054 | -2/Research | Identified exit to Garrison 20058 | -2/Research | Entered Garrison 20060 | -2/Garrison | Lost 12 parts (4p4u4w) 20084 | -2/Garrison | Triggered checkpoint 20216 | -2/Garrison | System corruption reached 10% 20286 | -2/Garrison | Core integrity fell below 50% 20335 | -2/Garrison | Lost 12 parts (3p2n4u3w) 20375 | -2/Garrison | Spotted B-90 Cyclops 20392 | -2/Garrison | Triggered checkpoint 20393 | -2/Garrison | Triggered checkpoint 20417 | -2/Garrison | Core integrity fell below 20% 20421 | -2/Garrison | Discovered new exit (range 14) 20430 | -2/Garrison | Entered Research 20442 | -2/Research | Found Prototype Launcher 20442 | -2/Research | Identified Gui. Micro-nuke Launcher 20446 | -2/Research | Found Gui. Micro-nuke Launcher 20459 | -2/Research | Lost 10 parts (1p3n3u3w) 20614 | -2/Research | Discovered new exit (range 15) 20641 | -2/Research | Entered Quarantine 20669 | -2/Quarantine | Found Quantum Capacitor 20695 | -2/Quarantine | Discovered new exit (range 16) 20704 | -2/Quarantine | Entered Access 20704 | -1/Access | Evolved 2 slots: Utility x2 21108 | -1/Access | Lost 11 parts (4p2n3u2w) 21171 | -1/Access | Build established: Scavenger-Mutant 21225 | -1/Access | Garrison activated, responded to threat 21267 | -1/Access | Lost 5 parts (1p2n2u) 21313 | -1/Access | Core integrity fell below 50% 21337 | -1/Access | Lost 10 parts (4n2u4w) 21442 | -1/Access | Spotted B-99 Colossus 21497 | -1/Access | Core integrity fell below 20% 21587 | -1/Access | System corruption reached 10% 21628 | -1/Access | Destroyed by P-80 Master with Gamma Rifle Last Messages --------------- 21586_ Slammed into A-15 Conveyor. 21586_ Adv. Salvage Targeting Computer destroyed. 21586_ System corrupted by crushing effect (+3). 21586_ A-15 Conveyor calls for reinforcements. 21586_ ALERT: Hostile activity reported, dispatching reinforcements to area. 21587_ Imp. Antigrav System destroyed. 21587_ Slammed into A-15 Conveyor. 21597_ A-15 Conveyor destroyed. 21599_ Acquired Prototype Flight Unit. 21599_ Identified Diametric Drive. 21600_ Dropped Imp. Antigrav System. 21601_ Acquired Diametric Drive. 21609_ IZJP7/WGLAXTEJME ZVJ2B2TLJQ 21615_ Connecting with Terminal... >>Index(Terminals) Found 22 terminals. Downloaded coordinate data. 21621_ Acquired Quantum Reactor. 21623_ Dropped Quantum Capacitor. Map ----- +----------------------------------------------------+ | ??????????????????# #???????????????????? | | ??????????????????# #???????????????????? | | ??????????????????# #######???????????????????? | | ??????????????????# #?????????????????????????? | | ????????????????###+##+####??????????????????????? | | ????????????????# #??????????????????????? | | #####???????????# #??????????????????????? | | ][ #???????????# " #??????????????????????? | | ][ #???????????# """ #??????????????????????? | | [ #???????????# """ #??????????????????????? | | #???????????# " #??????????????????????? | | ] #???????????# #??????????????????????? | | #?? ??????# #??????????????????????? | | #####?# ########+############???????????????? | | #?????# ????????????? | | #?????# [ ????????????? | | #?????# ####### ############???????????????? | | #??????????????????# #?# ! #???????????????? | | ########???????????# #?# ! #???????????????? | | #????????# #?# #???????????????? | | ########???????????# #?# #???????????????? | | #??????????????????# #?# #???????????????? | | #????????????????### ### #???????????????? | | #????????????????# # #???????????????? | | ####?????????????# ]# #???????????????? | | +?????????????+ T" #@ #???????????????? | | ####?????????????# "" tp #???????????????? | | #????????????????# # #???????????????? | | #????????????????# # #???????????????? | | #????????????????######## ! #???????????????? | | #???##################### #???????????????? | | #???# # ## #???????????????? | | #???# # ## #???????????????? | | #???# " # ## #???????????????? | | ###?# """ # ## #???????????????? | | #?# """ / # ###########???????????????? | | #?# ] " #! #?????????????????????????? | | #?? # #?????????????????????????? | | #???? ??# #?????????????????????????? | | #??####+##### #?????????????????????????? | | ##??# ###+#######?????????????????????????? | | ##### #????????????????????????????? | | #????????????????????????????? | | #????????????????????????????? | | """""" #????????????????????????????? | | ###+## """""" #????????????????????????????? | | ?? # """""" #????????????????????????????? | | ?? # """""" #?????? ?????????????????????? | | ? = # """""" #?????? ??????????????????? | | ? # #???? #?????????????????? | +----------------------------------------------------+ Best States ------------- Heat Dissipation 107 Energy Generation 65 Energy Capacity 1610 Matter Stores 600 Matter Capacity 600 Sight Range 23 Terrain Scan Range 20 Terrain Scan Density 210 Additional Mass Support 9 EM Shielding 4 Armor Coverage 1200 Resistance: KI 30 Resistance: TH 30 Resistance: EM 25 Core Shielding 30 Utility Shielding 90 Weapon Shielding 66 Phase Shifting 15 Evasion (%) 62 Targeting Accuracy 16 Target Analysis 8 Core Analysis 6 Armor Integrity Analysis 50 Recoil Reduction 4 Particle Charging 20 Kinecelleration 40 Salvage Targeting 3 Item Schematics ----------------- Assault Drone Bay | -4/Zhirov | Free Exp. Heat Sink | -4/Zhirov | Free Exp. Optical Array | -4/Zhirov | Free Imp. Arc Thrower | -4/Zhirov | Free Robot Schematics ------------------ None Fabricated ------------ Nothing Alien Tech Used ----------------- Integrated Dissipator Achievements -------------- Treasure Hunter Challenges ------------ None Game ------ Seed MakeshiftHugeCorpse Manual? 0 Play Time 02:57:12 Cumulative 193.8 hours Start 2020.12.26 @ 18:17:32 End 2020.12.26 @ 21:31:22 Sessions 1 Manual Loads 0 Difficulty Rogue Special Mode None Game No. 183 Rogue 176 Adventurer 0 Explorer 7 Win Type - Total 4 Types 0/0/4/0/0/0/0/0/0 Lore% 65 Gallery% 89 Achievement% 66 Wizard Run 0 Options --------- ASCII 0 Keyboard 0 Movement Numpad Keybinds 0 Fullscreen 1 Font 18/X11 Map View 76x50 Tactical HUD 1 Map Filters NONE Filters NONE Steam 1 RUN: e0239042-1f1f-4381-9950-c00694a78698